bitfinex/quotes_BTCUSD_20230904
["timestamp","ask_amount","ask_price","bid_price","bid_amount"]
[1693854151834,3.62361613,25902.0,25901.0,0.0257277]
[1693854152038,3.33094427,25902.0,25901.0,0.0257277]
[1693854152860,3.71758954,25902.0,25901.0,0.0257277]
[1693854153035,3.33094427,25902.0,25901.0,0.0257277]
[1693854153239,0.06,25901.0,25900.0,0.019998]
[1693854153442,3.44523149,25901.0,25900.0,0.019998]
[1693854153649,3.17055527,25901.0,25900.0,0.019998]
[1693854154904,3.17455527,25901.0,25900.0,0.019998]
[1693854156505,3.41789435,25901.0,25900.0,0.019998]
[1693854156712,3.17455527,25901.0,25900.0,0.019998]
[1693854157131,3.19455527,25901.0,25900.0,0.019998]
[1693854157726,3.08715527,25901.0,25900.0,0.019998]
[1693854158545,3.31749436,25901.0,25900.0,0.019998]
[1693854159088,3.08715527,25901.0,25900.0,0.019998]
[1693854163134,3.47380054,25901.0,25900.0,0.019998]
[1693854166140,4.58641843,25901.0,25900.0,0.019998]
[1693854166700,3.47380054,25901.0,25900.0,0.019998]
[1693854167688,3.08715527,25901.0,25900.0,0.019998]
[1693854169906,4.19979181,25901.0,25900.0,0.019998]
[1693854174159,4.19979181,25901.0,25895.0,0.1074]
[1693854174160,0.06,25897.0,25895.0,0.1074]
[1693854174376,0.08,25889.0,25888.0,0.09247114]
[1693854174598,0.08,25889.0,25884.0,0.019998]
[1693854174599,0.06,25885.0,25884.0,0.019998]
[1693854174827,2.01194127,25885.0,25884.0,0.019998]
[1693854175048,5.67594606,25885.0,25884.0,0.019998]
[1693854175338,4.78124137,25885.0,25884.0,0.019998]
[1693854175556,6.31399869,25885.0,25884.0,0.019998]
[1693854175767,6.46861469,25885.0,25884.0,0.019998]
[1693854176022,0.06,25880.0,25879.0,0.1074]
[1693854176244,0.18877073,25876.0,25874.0,0.019998]
[1693854176473,0.18877073,25876.0,25875.0,0.22135772]
[1693854176474,1.30163739,25876.0,25875.0,0.22135772]
[1693854176685,0.10647562,25874.0,25873.0,0.82325263]
[1693854176898,1.11325231,25875.0,25874.0,4.09e-06]
[1693854177115,0.18877073,25876.0,25875.0,0.02288315]
[1693854177328,1.30203437,25876.0,25875.0,0.37187134]
[1693854177754,1.30203437,25876.0,25875.0,0.17868967]
[1693854177967,1.30503437,25876.0,25875.0,0.17868967]
[1693854178181,1.30503437,25876.0,25875.0,0.20080135]
[1693854178394,1.30503437,25876.0,25875.0,0.12951168]
[1693854178815,1.30803437,25876.0,25875.0,0.12951168]
[1693854179030,1.30503437,25876.0,25875.0,0.12951168]
[1693854179243,1.30203437,25876.0,25875.0,0.12951168]
[1693854179458,1.46263537,25876.0,25875.0,0.16815868]
[1693854179674,1.46263537,25876.0,25875.0,0.35285268]
[1693854179675,0.160601,25876.0,25875.0,0.35285268]
[1693854179901,0.006,25876.0,25875.0,0.68589306]
[1693854180112,0.006,25876.0,25875.0,0.68643306]
[1693854180334,0.05999399,25883.0,25876.0,0.5]
[1693854180550,0.44663926,25883.0,25882.0,0.1074]
[1693854180753,0.44663926,25883.0,25882.0,0.26205811]
[1693854181001,0.44663926,25883.0,25882.0,0.1074]
[1693854181906,0.06,25888.0,25882.0,0.1074]
[1693854182119,0.02,25890.0,25887.0,0.1074]
[1693854182340,0.40664527,25889.0,25888.0,0.26205811]
[1693854182568,0.44664527,25889.0,25888.0,0.26205811]
[1693854182779,0.44664527,25889.0,25888.0,0.1074]
[1693854183006,1.37372627,25889.0,25888.0,0.1074]
[1693854183657,1.39772627,25889.0,25888.0,0.1094]
[1693854184087,1.39772627,25889.0,25888.0,0.1114]
[1693854184088,1.42172627,25889.0,25888.0,0.1114]
[1693854186948,1.42172627,25889.0,25888.0,0.004]
[1693854187589,2.96678227,25889.0,25888.0,0.004]
[1693854188644,2.94278227,25889.0,25888.0,0.002]
[1693854189062,2.94278227,25889.0,25884.0,0.1074]
[1693854189259,2.91878227,25889.0,25884.0,0.1074]
[1693854189466,2.94278227,25889.0,25888.0,0.002]
[1693854189673,2.96678227,25889.0,25888.0,0.00179907]
[1693854190052,2.91878227,25889.0,25884.0,0.1074]
[1693854190274,2.94278227,25889.0,25884.0,0.1074]
[1693854190479,2.94278227,25889.0,25884.0,0.1094]
[1693854190701,2.96678227,25889.0,25885.0,0.0194079]
[1693854190902,2.94278227,25889.0,25885.0,0.0194079]
[1693854191103,2.94278227,25889.0,25884.0,0.1074]
[1693854191323,0.04,25886.0,25881.0,0.4327]
[1693854191536,0.04,25886.0,25881.0,0.1977]
[1693854191537,0.832698,25884.0,25881.0,0.1977]
[1693854191759,1.99204127,25884.0,25881.0,0.1977]
[1693854191961,1.99204127,25884.0,25880.0,0.1074]
[1693854192405,1.99204127,25884.0,25880.0,0.37865065]
[1693854192616,1.95204127,25884.0,25881.0,0.19]
[1693854192827,1.99204127,25884.0,25881.0,0.19]
[1693854193037,2.01604127,25884.0,25881.0,0.192]
[1693854193247,1.99204127,25884.0,25881.0,0.19]
[1693854193664,2.04004127,25884.0,25881.0,0.19]
[1693854193875,2.01604127,25884.0,25881.0,0.19]
[1693854194195,1.99204127,25884.0,25881.0,0.19]
[1693854194431,2.01604127,25884.0,25881.0,0.19]
[1693854195039,2.04004127,25884.0,25881.0,0.192]
[1693854196336,2.04004127,25884.0,25881.0,0.40614816]
[1693854196736,2.81273927,25884.0,25881.0,0.192]
[1693854197100,1.653396,25884.0,25881.0,0.43713315]
[1693854197300,1.653396,25884.0,25882.0,0.1074]
[1693854198286,0.084,25884.0,25882.0,0.1074]
[1693854198701,0.108,25884.0,25882.0,0.1094]
[1693854199110,0.084,25884.0,25882.0,0.1094]
[1693854199942,0.880679,25884.0,25883.0,0.1074]
[1693854201404,0.856679,25884.0,25883.0,0.1074]
[1693854201611,0.880679,25884.0,25883.0,0.1094]
[1693854201808,0.856679,25884.0,25883.0,0.1094]
[1693854202018,0.880679,25884.0,25883.0,0.1094]
[1693854203241,1.653358,25884.0,25883.0,0.1094]
[1693854204052,1.633358,25884.0,25883.0,0.1094]
[1693854204449,1.713358,25884.0,25883.0,0.1094]
[1693854206718,1.733358,25884.0,25883.0,0.1094]
[1693854210053,1.713358,25884.0,25883.0,0.1094]
[1693854210941,2.87268227,25884.0,25883.0,0.002]
[1693854211358,2.87268227,25884.0,25883.0,0.1094]
[1693854213032,2.79268227,25884.0,25883.0,0.1094]
[1693854213292,2.87268227,25884.0,25883.0,0.1094]
[1693854218049,2.87268227,25884.0,25883.0,0.002]
[1693854218915,3.02508227,25884.0,25883.0,0.002]
[1693854221339,3.02508227,25884.0,25883.0,0.1094]
[1693854232932,3.02508227,25884.0,25883.0,0.002]
[1693854233142,3.06508227,25884.0,25883.0,0.002]
[1693854237006,3.47172754,25884.0,25883.0,0.002]
[1693854237190,5.40246922,25884.0,25883.0,0.002]
[1693854237413,5.39568922,25884.0,25883.0,0.002]
[1693854237628,5.62697788,25884.0,25883.0,0.002]
[1693854237833,5.37527496,25884.0,25883.0,0.002]
[1693854238040,0.08,25882.0,25881.0,0.19]
[1693854238247,3.7501278,25882.0,25881.0,0.19]
[1693854238449,4.0501278,25882.0,25881.0,0.19]
[1693854239318,4.43677307,25882.0,25881.0,0.19]
[1693854239519,4.86913207,25882.0,25881.0,0.19]
[1693854239729,4.18888761,25882.0,25881.0,0.19]
[1693854239930,4.09639507,25882.0,25881.0,0.19]
[1693854240319,4.21288741,25882.0,25881.0,0.19]
[1693854241329,4.23688741,25882.0,25881.0,0.19]
[1693854242483,4.62353268,25882.0,25881.0,0.19]
[1693854242681,4.23688741,25882.0,25881.0,0.19]
[1693854243106,4.14439507,25882.0,25881.0,0.19]
[1693854243313,4.23688036,25882.0,25881.0,0.19]
[1693854243531,4.09807856,25882.0,25881.0,0.19]
[1693854245440,5.39626263,25882.0,25881.0,0.19]
[1693854245651,6.12584416,25882.0,25881.0,0.19]
[1693854245856,5.8267555,25882.0,25881.0,0.19]
[1693854246616,5.50862503,25882.0,25881.0,0.19]
[1693854247753,5.32355597,25882.0,25881.0,0.19]
[1693854248381,5.38865597,25882.0,25881.0,0.19]
[1693854248587,4.9369107,25882.0,25881.0,0.19]
[1693854248798,4.96709079,25882.0,25881.0,0.19]
[1693854249435,5.03675079,25882.0,25881.0,0.19]
[1693854249651,4.96709079,25882.0,25881.0,0.19]
[1693854249856,5.12645289,25882.0,25881.0,0.19]
[1693854250070,5.37433773,25882.0,25881.0,0.19]
[1693854250280,5.37397773,25882.0,25881.0,0.19]
[1693854250482,4.98961246,25882.0,25881.0,0.19]
[1693854250663,5.00053246,25882.0,25881.0,0.19]
[1693854250877,4.99807246,25882.0,25881.0,0.19]
[1693854251126,4.99885246,25882.0,25881.0,0.19]
[1693854251329,4.99843246,25882.0,25881.0,0.19]
[1693854251547,5.35168485,25882.0,25881.0,0.19]
[1693854251727,5.34796485,25882.0,25881.0,0.19]
[1693854251951,5.34610485,25882.0,25881.0,0.19]
[1693854252160,5.35048485,25882.0,25881.0,0.19]
[1693854252369,5.35138485,25882.0,25881.0,0.19]
[1693854252583,4.98931246,25882.0,25881.0,0.19]
[1693854252876,4.92085246,25882.0,25881.0,0.19]
[1693854253480,4.82851036,25882.0,25881.0,0.19]
[1693854253692,4.03577336,25882.0,25881.0,0.19]
[1693854254679,4.21017303,25882.0,25881.0,0.19]
[1693854254865,4.03577336,25882.0,25881.0,0.19]
[1693854258091,4.03577336,25882.0,25881.0,0.2974]
[1693854258285,4.03577336,25882.0,25881.0,0.2924]
[1693854259762,4.03577336,25882.0,25881.0,0.185]
[1693854264496,3.26303636,25882.0,25881.0,0.185]
[1693854279605,3.35537846,25882.0,25881.0,0.185]
[1693854287371,3.35537846,25882.0,25881.0,0.183]
[1693854294851,3.49395889,25882.0,25881.0,0.183]
[1693854296740,3.40161679,25882.0,25881.0,0.183]
[1693854301744,0.14058074,25882.0,25881.0,0.52808972]
[1693854301915,0.048,25882.0,25881.0,0.64400372]
[1693854302085,0.048,25882.0,25881.0,0.66128244]
[1693854302086,0.024,25882.0,25881.0,0.66128244]
[1693854302989,0.048,25882.0,25881.0,0.66128244]
[1693854303339,0.024,25882.0,25881.0,0.62264444]
[1693854303640,0.048,25882.0,25881.0,0.62264444]
[1693854314828,0.024,25882.0,25881.0,0.62264444]
[1693854315228,0.02,25883.0,25881.0,0.62264444]
[1693854315573,0.02,25883.0,25881.0,0.51524444]
[1693854315574,0.048,25882.0,25881.0,0.51524444]
[1693854315725,0.048,25882.0,25881.0,0.62264444]
[1693854315925,0.024,25882.0,25881.0,0.62264444]
[1693854316136,0.048,25882.0,25881.0,0.62264444]
[1693854321231,0.048,25882.0,25881.0,0.66128244]
[1693854334703,0.024,25882.0,25881.0,0.66128244]
[1693854334908,0.2806,25884.0,25881.0,0.66128244]
[1693854335111,0.024,25882.0,25881.0,0.55488244]
[1693854335287,0.048,25882.0,25881.0,0.66328244]
[1693854335492,0.024,25882.0,25881.0,0.66228244]
[1693854335822,0.048,25882.0,25881.0,0.66328244]
[1693854336374,0.048,25882.0,25881.0,0.66228244]
[1693854336738,0.024,25882.0,25881.0,0.66228244]
[1693854337179,0.2006,25884.0,25881.0,0.66128244]
[1693854337385,0.1806,25884.0,25883.0,0.1074]
[1693854337784,0.1806,25884.0,25883.0,0.12440992]
[1693854338429,0.1806,25884.0,25883.0,0.20167992]
[1693854338638,0.2046,25884.0,25883.0,0.20267992]
[1693854339167,0.2286,25884.0,25883.0,0.24231492]
[1693854341419,0.2486,25884.0,25883.0,0.24231492]
[1693854341617,0.3286,25884.0,25883.0,0.24231492]
[1693854342203,0.3286,25884.0,25883.0,0.20367992]
[1693854354502,0.42108075,25884.0,25883.0,0.20367992]
[1693854363623,0.42108075,25884.0,25883.0,0.24231492]
[1693854364045,0.3286,25884.0,25883.0,0.24231492]
[1693854365158,0.42108075,25884.0,25883.0,0.24231492]
[1693854365270,0.3286,25884.0,25883.0,0.24231492]
[1693854365496,0.42108075,25884.0,25883.0,0.24231492]
[1693854366968,0.2486,25884.0,25883.0,0.24231492]
[1693854367171,0.3286,25884.0,25883.0,0.24231492]
[1693854368017,0.2486,25884.0,25883.0,0.24231492]
[1693854368575,0.3286,25884.0,25883.0,0.24231492]
[1693854369845,0.2886,25884.0,25883.0,0.24231492]
[1693854370058,0.2486,25884.0,25883.0,0.24231492]
[1693854370228,0.168,25884.0,25883.0,0.24231492]
[1693854376814,0.048,25884.0,25883.0,0.24231492]
[1693854378057,0.024,25884.0,25883.0,0.24131492]
[1693854378419,0.02,25884.0,25883.0,0.24031492]
[1693854378647,0.044,25884.0,25883.0,0.24131492]
[1693854379205,0.068,25884.0,25883.0,0.24231492]
[1693854379820,0.044,25884.0,25883.0,0.24131492]
[1693854380019,0.068,25884.0,25883.0,0.24231492]
[1693854382814,0.048,25884.0,25883.0,0.24231492]
[1693854383018,0.068,25884.0,25883.0,0.24231492]
[1693854384320,0.048,25884.0,25883.0,0.24231492]
[1693854394076,0.048,25884.0,25883.0,0.23791257]
[1693854397865,0.128,25884.0,25883.0,0.23791257]
[1693854398900,0.148,25884.0,25883.0,0.23791257]
[1693854401347,0.148,25884.0,25883.0,0.13051257]
[1693854420056,0.068,25884.0,25883.0,0.35946259]
[1693854420292,0.048,25884.0,25883.0,0.35946259]
[1693854431418,0.048,25884.0,25883.0,1.10091891]
[1693854431617,0.1,25890.0,25883.0,1.34515629]
[1693854431847,0.1,25890.0,25886.0,0.28582253]
[1693854432019,0.1,25891.0,25888.0,0.077254]
[1693854432391,0.1,25891.0,25890.0,0.154496]
[1693854432596,0.2,25891.0,25890.0,0.154496]
[1693854433333,0.224,25891.0,25890.0,0.154496]
[1693854433572,0.2,25891.0,25890.0,0.154496]
[1693854433774,0.224,25891.0,25890.0,0.16755172]
[1693854434184,0.248,25891.0,25890.0,0.16955172]
[1693854439444,0.148,25891.0,25890.0,0.16955172]
[1693854452942,0.048,25891.0,25890.0,0.16955172]
[1693854468380,0.128,25891.0,25890.0,0.16955172]
[1693854470274,0.048,25891.0,25890.0,0.16955172]
[1693854471645,0.128,25891.0,25890.0,0.16955172]
[1693854471887,0.048,25891.0,25890.0,0.16955172]
[1693854474611,0.128,25891.0,25890.0,0.16955172]
[1693854475125,0.048,25891.0,25890.0,0.16955172]
[1693854475505,0.128,25891.0,25890.0,0.16955172]
[1693854476516,0.048,25891.0,25890.0,0.16955172]
[1693854477601,0.128,25891.0,25890.0,0.16955172]
[1693854478263,0.048,25891.0,25890.0,0.16955172]
[1693854481509,0.048,25891.0,25890.0,0.45716972]
[1693854482235,0.048,25891.0,25890.0,0.49579372]
[1693854483291,0.048,25891.0,25890.0,0.88243899]
[1693854484883,0.048,25891.0,25890.0,1.07243899]
[1693854489626,0.048,25891.0,25890.0,0.93741529]
[1693854490047,0.048,25891.0,25890.0,1.31970495]
[1693854490245,0.048,25891.0,25890.0,1.4585964]
[1693854490448,0.048,25891.0,25890.0,1.31970495]
[1693854490690,0.024,25891.0,25890.0,0.93541529]
[1693854491506,0.048,25891.0,25890.0,0.93741529]
[1693854492072,0.048,25891.0,25890.0,0.84482099]
[1693854492680,0.048,25891.0,25890.0,1.10327206]
[1693854506698,0.048,25891.0,25890.0,1.18672712]
[1693854506962,0.048,25891.0,25890.0,1.10327206]
[1693854507612,0.048,25891.0,25890.0,1.18672719]
[1693854510222,0.048,25891.0,25890.0,1.16672719]
[1693854515850,0.048,25891.0,25890.0,1.25931573]
[1693854516061,0.048,25891.0,25890.0,1.16672719]
[1693854516262,0.048,25891.0,25890.0,1.25931573]
[1693854521130,0.048,25891.0,25890.0,1.39819855]
[1693854521301,0.048,25891.0,25890.0,1.30561001]
[1693854523830,0.048,25891.0,25890.0,1.4907871]
[1693854524481,0.048,25891.0,25890.0,1.35190428]
[1693854534283,0.048,25891.0,25890.0,1.36949822]
[1693854534430,0.048,25891.0,25890.0,2.00716959]
[1693854534640,0.048,25891.0,25890.0,2.07484959]
[1693854534870,0.048,25891.0,25890.0,2.07520959]
[1693854535230,0.048,25891.0,25890.0,2.07484959]
[1693854535361,0.048,25891.0,25890.0,2.07490959]
[1693854535569,0.048,25891.0,25890.0,2.07484959]
[1693854535753,0.048,25891.0,25890.0,2.07460959]
[1693854535977,0.048,25891.0,25890.0,2.07478959]
[1693854536393,0.048,25891.0,25890.0,2.07466959]
[1693854536618,0.048,25891.0,25890.0,1.8891325]
[1693854536816,0.048,25891.0,25890.0,2.07402102]
[1693854536999,0.048,25891.0,25890.0,2.07396102]
[1693854537563,0.048,25891.0,25890.0,2.07324102]
[1693854537771,0.048,25891.0,25890.0,2.07318102]
[1693854537977,0.048,25891.0,25890.0,2.07420102]
[1693854538110,0.048,25891.0,25890.0,1.8887725]
[1693854538315,0.048,25891.0,25890.0,1.8888325]
[1693854538522,0.048,25891.0,25890.0,1.8873325]
[1693854538748,0.048,25891.0,25890.0,1.8887725]
[1693854538947,0.048,25891.0,25890.0,1.8873325]
[1693854539377,0.048,25891.0,25890.0,2.00729186]
[1693854541246,0.048,25891.0,25890.0,1.8219925]
[1693854543835,0.048,25891.0,25890.0,2.0072847]
[1693854544039,0.048,25891.0,25890.0,1.8219925]
[1693854545420,0.048,25891.0,25890.0,1.81157158]
[1693854545595,0.048,25891.0,25890.0,1.9968605]
[1693854548496,0.048,25891.0,25890.0,1.72094343]
[1693854548725,0.048,25891.0,25890.0,1.81022344]
[1693854548927,0.048,25891.0,25890.0,1.99551018]
[1693854549285,0.048,25891.0,25890.0,1.99551021]
[1693854549576,0.048,25891.0,25890.0,1.99551014]
[1693854550110,0.048,25891.0,25890.0,1.81022344]
[1693854552382,0.048,25891.0,25890.0,1.99550755]
[1693854557508,0.068,25891.0,25890.0,1.99550755]
[1693854558971,0.068,25891.0,25890.0,1.81022344]
[1693854560143,0.068,25891.0,25890.0,1.99457735]
[1693854560913,0.148,25891.0,25890.0,1.99457735]
[1693854563379,0.148,25891.0,25890.0,1.81022344]
[1693854564622,0.148,25891.0,25890.0,1.81041966]
[1693854574529,0.148,25891.0,25890.0,1.72113965]
[1693854574724,0.148,25891.0,25890.0,1.82246764]
[1693854576912,0.148,25891.0,25890.0,2.00681205]
[1693854579733,0.148,25891.0,25890.0,1.77514446]
[1693854600105,0.148,25891.0,25890.0,1.84168446]
[1693854600386,0.148,25891.0,25890.0,1.84486446]
[1693854600800,0.148,25891.0,25890.0,1.84348446]
[1693854601008,0.148,25891.0,25890.0,1.84258446]
[1693854601206,0.148,25891.0,25890.0,1.84186446]
[1693854601409,0.148,25891.0,25890.0,1.84204446]
[1693854601632,0.148,25891.0,25890.0,1.84264446]
[1693854601911,0.148,25891.0,25890.0,1.84270446]
[1693854602272,0.148,25891.0,25890.0,1.84288446]
[1693854602472,0.148,25891.0,25890.0,1.84282446]
[1693854602693,0.148,25891.0,25890.0,1.84258446]
[1693854603019,0.148,25891.0,25890.0,1.84234446]
[1693854603171,0.148,25891.0,25890.0,1.84246446]
[1693854603369,0.148,25891.0,25890.0,1.84258446]
[1693854603579,0.148,25891.0,25890.0,1.84228446]
[1693854603779,0.148,25891.0,25890.0,1.84234446]
[1693854604024,0.148,25891.0,25890.0,1.84180446]
[1693854604302,0.148,25891.0,25890.0,1.84192446]
[1693854604481,0.148,25891.0,25890.0,1.84180446]
[1693854604708,0.148,25891.0,25890.0,1.84168446]
[1693854604905,0.148,25891.0,25890.0,1.84174446]
[1693854605132,0.148,25891.0,25890.0,1.84186446]
[1693854605444,0.148,25891.0,25890.0,1.84180446]
[1693854605643,0.148,25891.0,25890.0,1.84168446]
[1693854605842,0.148,25891.0,25890.0,1.84144446]
[1693854606715,0.148,25891.0,25890.0,1.84114446]
[1693854606932,0.148,25891.0,25890.0,1.84120446]
[1693854607270,0.148,25891.0,25890.0,1.84000446]
[1693854607647,0.148,25891.0,25890.0,1.77514446]
[1693854607935,0.148,25891.0,25890.0,1.84054446]
[1693854608091,0.148,25891.0,25890.0,1.84108446]
[1693854608516,0.148,25891.0,25890.0,1.77514446]
[1693854608720,0.148,25891.0,25890.0,1.84108446]
[1693854608922,0.148,25891.0,25890.0,1.77514446]
[1693854609127,0.148,25891.0,25890.0,1.84042446]
[1693854609280,0.148,25891.0,25890.0,1.84036446]
[1693854609487,0.148,25891.0,25890.0,1.84018446]
[1693854609748,0.148,25891.0,25890.0,1.84012446]
[1693854610459,0.148,25891.0,25890.0,1.77514446]
[1693854610968,0.148,25891.0,25890.0,1.84042446]
[1693854611169,0.148,25891.0,25890.0,1.77514446]
[1693854611918,0.148,25891.0,25890.0,1.58514446]
[1693854613827,0.148,25891.0,25890.0,1.57408874]
[1693854614089,0.148,25891.0,25890.0,1.58427353]
[1693854617363,0.148,25891.0,25890.0,1.48294554]
[1693854617581,0.148,25891.0,25890.0,1.60532486]
[1693854619805,0.124,25891.0,25890.0,1.60332486]
[1693854620032,0.1,25891.0,25890.0,1.60132486]
[1693854620235,0.124,25891.0,25890.0,1.60332486]
[1693854620449,0.148,25891.0,25890.0,1.60532486]
[1693854630055,0.148,25891.0,25890.0,1.79532486]
[1693854638485,0.14788144,25891.0,25890.0,1.79532486]
[1693854653096,0.14788144,25891.0,25890.0,1.38912486]
[1693854655246,0.14788144,25891.0,25890.0,1.44293706]
[1693854661989,0.14788144,25891.0,25890.0,1.55023706]
[1693854665442,0.16788144,25891.0,25890.0,1.55023706]
[1693854666631,0.16788144,25891.0,25890.0,1.25178599]
[1693854666834,0.16788144,25891.0,25890.0,0.68942988]
[1693854667037,0.16788144,25891.0,25890.0,0.37415502]
[1693854667291,0.16788144,25891.0,25890.0,0.28143279]
[1693854668148,0.11988144,25889.0,25888.0,0.09272223]
[1693854668348,0.13988144,25887.0,25886.0,0.13135123]
[1693854668458,0.13988144,25887.0,25886.0,0.077259]
[1693854671282,0.16388144,25887.0,25886.0,0.078259]
[1693854671399,0.18788144,25887.0,25886.0,0.079259]
[1693854671790,0.31923644,25887.0,25886.0,0.079259]
[1693854672682,0.31923644,25887.0,25886.0,0.376559]
[1693854672814,0.29923644,25887.0,25886.0,0.376559]
[1693854673011,0.31923644,25887.0,25886.0,0.376559]
[1693854675361,0.29923644,25887.0,25886.0,0.376559]
[1693854675561,0.31923644,25887.0,25886.0,0.376559]
[1693854675785,0.31923644,25887.0,25886.0,0.38777709]
[1693854682825,0.31923644,25887.0,25886.0,0.42640709]
[1693854686230,0.31923644,25887.0,25886.0,0.31910709]
[1693854694680,0.23923644,25887.0,25886.0,0.86041047]
[1693854694885,0.14788144,25887.0,25886.0,0.88034236]
[1693854695110,0.14788144,25887.0,25886.0,0.90722236]
[1693854695315,0.14788144,25887.0,25886.0,1.14307736]
[1693854695515,0.06788144,25887.0,25886.0,1.14643736]
[1693854695731,0.12388144,25887.0,25886.0,0.90046236]
[1693854695935,0.12488144,25887.0,25886.0,1.12957046]
[1693854696148,0.12488144,25887.0,25886.0,1.12453046]
[1693854696354,0.12488144,25887.0,25886.0,1.12303046]
[1693854696615,0.09988144,25887.0,25886.0,1.12467046]
[1693854696822,0.09988144,25887.0,25886.0,1.12245046]
[1693854697030,0.09988144,25887.0,25886.0,0.88992236]
[1693854697237,0.09988144,25887.0,25886.0,0.88914236]
[1693854697388,0.10188144,25887.0,25886.0,0.88968236]
[1693854697611,0.10188144,25887.0,25886.0,0.88896236]
[1693854697987,0.02988144,25887.0,25886.0,1.17737908]
[1693854698190,0.12088144,25887.0,25886.0,1.17399908]
[1693854698337,0.12088144,25887.0,25886.0,1.17363908]
[1693854698540,0.12088144,25887.0,25886.0,1.17351908]
[1693854698715,0.12088144,25887.0,25886.0,1.15273908]
[1693854698924,0.12088144,25887.0,25886.0,1.17309908]
[1693854699145,0.12088144,25887.0,25886.0,0.87830236]
[1693854699346,0.12088144,25887.0,25886.0,0.87824236]
[1693854699550,0.12088144,25887.0,25886.0,0.87890236]
[1693854699725,0.12088144,25887.0,25886.0,0.87884236]
[1693854700088,0.12088144,25887.0,25886.0,0.87878236]
[1693854700287,0.12088144,25887.0,25886.0,0.88112236]
[1693854700428,0.12088144,25887.0,25886.0,0.97272009]
[1693854700629,0.12088144,25887.0,25886.0,0.97086009]
[1693854700831,0.12088144,25887.0,25886.0,0.97074009]
[1693854701076,0.12088144,25887.0,25886.0,1.15905984]
[1693854701294,0.12088144,25887.0,25886.0,1.15857984]
[1693854701452,0.12088144,25887.0,25886.0,1.15839984]
[1693854701645,0.12088144,25887.0,25886.0,1.25053757]
[1693854701975,0.12088144,25887.0,25886.0,1.15203984]
[1693854702176,0.12088144,25887.0,25886.0,1.15023984]
[1693854702367,0.12088144,25887.0,25886.0,1.06501984]
[1693854702569,0.12088144,25887.0,25886.0,1.08501984]
[1693854703090,0.12088144,25887.0,25886.0,1.02501984]
[1693854703228,0.12088144,25887.0,25886.0,1.08501984]
[1693854704150,0.12088144,25887.0,25886.0,1.17739757]
[1693854709368,0.12088144,25887.0,25886.0,1.31596417]
[1693854710133,0.12088144,25887.0,25886.0,1.31609806]
[1693854710331,0.12088144,25887.0,25886.0,1.22358644]
[1693854712394,0.12088144,25887.0,25886.0,1.40834191]
[1693854715802,0.12088144,25887.0,25886.0,1.24977531]
[1693854715932,0.12088144,25887.0,25886.0,1.26977531]
[1693854721436,0.12088144,25887.0,25886.0,1.40860973]
[1693854722660,0.12088144,25887.0,25886.0,1.26977531]
[1693854723261,0.12088144,25887.0,25886.0,1.40861124]
[1693854723493,0.12088144,25887.0,25886.0,1.4086128]
[1693854723696,0.12088144,25887.0,25886.0,0.83721206]
[1693854727175,0.14088144,25887.0,25886.0,0.49657458]
[1693854727369,0.14088144,25887.0,25886.0,0.39773709]
[1693854735342,0.14088144,25887.0,25886.0,0.35773709]
[1693854736728,0.14088144,25887.0,25886.0,0.31910709]
[1693854770982,2.94529071,25887.0,25886.0,0.20321809]
[1693854771193,3.03756456,25887.0,25886.0,0.20321809]
[1693854771416,3.42420983,25887.0,25886.0,0.20321809]
[1693854771632,3.5626206,25887.0,25886.0,0.20321809]
[1693854771839,3.45934675,25887.0,25886.0,0.191]
[1693854772055,3.42347313,25887.0,25886.0,0.192]
[1693854772258,3.02682786,25887.0,25886.0,0.191]
[1693854772466,3.05082786,25887.0,25886.0,0.192]
[1693854772710,3.02682786,25887.0,25886.0,0.191]
[1693854773368,3.01682786,25887.0,25886.0,0.19]
[1693854773570,3.06482786,25887.0,25886.0,0.192]
[1693854774000,3.04082786,25887.0,25886.0,0.191]
[1693854774510,3.06482786,25887.0,25886.0,0.192]
[1693854774693,3.04082786,25887.0,25886.0,0.191]
[1693854775119,3.04082786,25887.0,25886.0,0.192]
[1693854775120,2.97229071,25887.0,25886.0,0.192]
[1693854775544,3.06482786,25887.0,25886.0,0.192]
[1693854776963,2.97229071,25887.0,25886.0,0.192]
[1693854784481,3.25588552,25887.0,25886.0,0.192]
[1693854785485,2.97229071,25887.0,25886.0,0.192]
[1693854801345,4.08546168,25887.0,25886.0,0.192]
[1693854801557,2.97229071,25887.0,25886.0,0.192]
[1693854801753,4.08546465,25887.0,25886.0,0.192]
[1693854801964,2.97229071,25887.0,25886.0,0.192]
[1693854808519,2.91229071,25887.0,25886.0,0.192]
[1693854812342,2.89229071,25887.0,25886.0,0.192]
[1693854812804,2.98482786,25887.0,25886.0,0.192]
[1693854813584,2.96482786,25887.0,25886.0,0.192]
[1693854813779,2.19223986,25887.0,25886.0,0.192]
[1693854815863,2.33065063,25887.0,25886.0,0.192]
[1693854816810,2.23811348,25887.0,25886.0,0.192]
[1693854822708,2.23811348,25887.0,25886.0,0.002]
[1693854824657,2.42266118,25887.0,25886.0,0.002]
[1693854824860,2.23811348,25887.0,25886.0,0.002]
[1693854827788,0.39890086,25887.0,25886.0,0.04063]
[1693854828008,0.26049009,25887.0,25886.0,0.38283199]
[1693854828225,0.6410521,25887.0,25886.0,0.93595582]
[1693854828443,0.08,25889.0,25886.0,0.60907584]
[1693854828649,0.08,25888.0,25887.0,0.6489224]
[1693854829063,0.08,25888.0,25887.0,0.74164252]
[1693854829276,0.08,25888.0,25887.0,0.6489224]
[1693854829891,0.08,25888.0,25887.0,0.8034384]
[1693854830093,0.104,25888.0,25887.0,0.8054384]
[1693854830763,0.126,25888.0,25887.0,0.8074384]
[1693854835014,0.046,25888.0,25887.0,0.54516127]
[1693854836255,0.046,25888.0,25887.0,0.76900979]
[1693854839045,0.06588144,25888.0,25887.0,0.78080281]
[1693854844240,0.06588144,25888.0,25887.0,0.97080281]